[Event "Titled Tuesday Blitz March 14 Early 2023"]
[White "Madaminov, Mukhiddin"]
[Black "Tanenbaum, Zachary"]
[WhiteFideId "14210703"]
[BlackFideId "2060850"]
[WhiteElo "2511"]
[BlackElo "2175"]
[Result "1-0"]
[Round "09"]
[TimeControl "180+2"]
[Date "2023.03.14"]
[WhiteClock "0:00:03"]
[BlackClock "0:00:02"]

1. d4 {[%clk 0:02:59]}  d5 {[%clk 0:03:00]} 2. Nc3 {[%clk 0:02:59]}  Nf6 {[%clk 0:02:59]} 3. Bf4 {[%clk 0:02:58]}  a6 {[%clk 0:02:59]} 4. e3 {[%clk 0:02:58]}  Bf5 {[%clk 0:03:00]} 5. f3 {[%clk 0:02:58]}  e6 {[%clk 0:03:00]} 6. g4 {[%clk 0:02:58]}  Bg6 {[%clk 0:03:01]} 7. h4 {[%clk 0:02:57]}  h5 {[%clk 0:03:01]} 8. g5 {[%clk 0:02:54]}  Nfd7 {[%clk 0:03:02]} 9. Bd3 {[%clk 0:02:52]}  Bxd3 {[%clk 0:03:03]} 10. Qxd3 {[%clk 0:02:47]}  g6 {[%clk 0:03:04]} 11. Nge2 {[%clk 0:02:28]}  Bg7 {[%clk 0:03:03]} 12. e4 {[%clk 0:02:26]}  c6 {[%clk 0:03:03]} 13. b3 {[%clk 0:02:17]}  O-O {[%clk 0:02:57]} 14. O-O-O {[%clk 0:02:09]}  Qe7 {[%clk 0:02:51]} 15. Kb1 {[%clk 0:02:06]}  b5 {[%clk 0:02:34]} 16. Rhe1 {[%clk 0:02:05]}  Nb6 {[%clk 0:02:33]} 17. Nc1 {[%clk 0:01:54]}  Qa3 {[%clk 0:02:25]} 18. Ka1 {[%clk 0:01:49]}  N8d7 {[%clk 0:02:23]} 19. Nb1 {[%clk 0:01:47]}  Qe7 {[%clk 0:02:17]} 20. Qd2 {[%clk 0:01:32]}  a5 {[%clk 0:02:15]} 21. c3 {[%clk 0:01:22]}  b4 {[%clk 0:02:13]} 22. a4 {[%clk 0:01:16]}  bxa3 {[%clk 0:01:31]} 23. Qa2 {[%clk 0:01:16]}  a4 {[%clk 0:01:32]} 24. b4 {[%clk 0:01:16]}  Nc4 {[%clk 0:01:15]} 25. Nxa3 {[%clk 0:01:09]}  Ndb6 {[%clk 0:01:13]} 26. Nxc4 {[%clk 0:01:05]}  Nxc4 {[%clk 0:01:13]} 27. Nd3 {[%clk 0:01:06]}  Qa7 {[%clk 0:00:51]} 28. Nb2 {[%clk 0:01:01]}  Nxb2 {[%clk 0:00:41]} 29. Kxb2 {[%clk 0:00:59]}  e5 {[%clk 0:00:39]} 30. Bxe5 {[%clk 0:00:57]}  Bxe5 {[%clk 0:00:39]} 31. dxe5 {[%clk 0:00:58]}  Qf2+ {[%clk 0:00:39]} 32. Ka3 {[%clk 0:00:33]}  Qxf3 {[%clk 0:00:40]} 33. Qc2 {[%clk 0:00:33]}  dxe4 {[%clk 0:00:34]} 34. Rxe4 {[%clk 0:00:32]}  c5 {[%clk 0:00:30]} 35. b5 {[%clk 0:00:27]}  Rfd8 {[%clk 0:00:28]} 36. Rd6 {[%clk 0:00:24]}  Qh1 {[%clk 0:00:19]} 37. Ka2 {[%clk 0:00:16]}  a3 {[%clk 0:00:15]} 38. c4 {[%clk 0:00:11]}  Qf3 {[%clk 0:00:09]} 39. Rd5 {[%clk 0:00:09]}  Qf5 {[%clk 0:00:06]} 40. Re2 {[%clk 0:00:08]}  Qe6 {[%clk 0:00:06]} 41. Red2 {[%clk 0:00:08]}  Re8 {[%clk 0:00:05]} 42. Rxc5 {[%clk 0:00:07]}  Qg4 {[%clk 0:00:04]} 43. Rc7 {[%clk 0:00:03]}  Rxe5 {[%clk 0:00:03]} 44. Rf2 {[%clk 0:00:04]}  Rf8 {[%clk 0:00:02]} 45. Rfxf7 {[%clk 0:00:03]} 1-0


[Site "https://www.chess.com"]

[Event "Titled Tuesday Blitz March 14 Early 2023"]
[White "Liyanage, Ranindu Dilshan"]
[Black "Aditya Mittal"]
[WhiteFideId "9915834"]
[BlackFideId "35042025"]
[WhiteElo "2199"]
[BlackElo "2396"]
[Result "1-0"]
[Round "09"]
[TimeControl "180+2"]
[Date "2023.03.14"]
[WhiteClock "0:00:16"]
[BlackClock "0:00:03"]

1. e4 {[%clk 0:03:00]}  e5 {[%clk 0:03:00]} 2. Nf3 {[%clk 0:03:00]}  Nc6 {[%clk 0:03:01]} 3. Bc4 {[%clk 0:03:00]}  Nf6 {[%clk 0:03:01]} 4. d3 {[%clk 0:03:00]}  d5 {[%clk 0:03:02]} 5. exd5 {[%clk 0:02:58]}  Nxd5 {[%clk 0:03:03]} 6. O-O {[%clk 0:02:56]}  Be7 {[%clk 0:03:03]} 7. Re1 {[%clk 0:02:50]}  f6 {[%clk 0:03:04]} 8. h3 {[%clk 0:02:34]}  Be6 {[%clk 0:02:55]} 9. d4 {[%clk 0:01:53]}  Ne3 {[%clk 0:02:55]} 10. Bxe3 {[%clk 0:01:52]}  Bxc4 {[%clk 0:02:56]} 11. dxe5 {[%clk 0:01:48]}  Bf7 {[%clk 0:02:56]} 12. Qxd8+ {[%clk 0:01:44]}  Rxd8 {[%clk 0:02:57]} 13. exf6 {[%clk 0:01:44]}  Bxf6 {[%clk 0:02:40]} 14. Bd4+ {[%clk 0:01:44]}  Kf8 {[%clk 0:02:38]} 15. Bxf6 {[%clk 0:01:42]}  gxf6 {[%clk 0:02:39]} 16. Nc3 {[%clk 0:01:43]}  Bg6 {[%clk 0:02:23]} 17. Re2 {[%clk 0:01:32]}  Kf7 {[%clk 0:02:21]} 18. a3 {[%clk 0:01:29]}  Rhe8 {[%clk 0:01:48]} 19. Rae1 {[%clk 0:01:28]}  a6 {[%clk 0:01:35]} 20. Rxe8 {[%clk 0:01:12]}  Rxe8 {[%clk 0:01:35]} 21. Rxe8 {[%clk 0:01:12]}  Kxe8 {[%clk 0:01:36]} 22. Nd5 {[%clk 0:01:13]}  Bxc2 {[%clk 0:01:26]} 23. Nxc7+ {[%clk 0:01:14]}  Kd7 {[%clk 0:01:24]} 24. Nd5 {[%clk 0:01:13]}  Ke6 {[%clk 0:01:22]} 25. Ne3 {[%clk 0:01:12]}  Be4 {[%clk 0:01:16]} 26. Nd2 {[%clk 0:01:11]}  Bg6 {[%clk 0:00:46]} 27. f4 {[%clk 0:01:08]}  Kd6 {[%clk 0:00:33]} 28. Kf2 {[%clk 0:01:02]}  Kc5 {[%clk 0:00:34]} 29. f5 {[%clk 0:01:00]}  Bf7 {[%clk 0:00:28]} 30. Ne4+ {[%clk 0:01:00]}  Kd4 {[%clk 0:00:27]} 31. Nxf6 {[%clk 0:01:00]}  h6 {[%clk 0:00:09]} 32. Ke2 {[%clk 0:00:41]}  Ne5 {[%clk 0:00:07]} 33. Nfg4 {[%clk 0:00:40]}  Bh5 {[%clk 0:00:03]} 34. Kd2 {[%clk 0:00:36]}  Bxg4 {[%clk 0:00:04]} 35. Nxg4 {[%clk 0:00:27]}  Nc4+ {[%clk 0:00:05]} 36. Kc2 {[%clk 0:00:26]}  h5 {[%clk 0:00:05]} 37. f6 {[%clk 0:00:20]}  Nd6 {[%clk 0:00:05]} 38. Nh6 {[%clk 0:00:20]}  Ke3 {[%clk 0:00:06]} 39. g4 {[%clk 0:00:14]}  hxg4 {[%clk 0:00:02]} 40. hxg4 {[%clk 0:00:15]}  Kf4 {[%clk 0:00:03]} 41. f7 {[%clk 0:00:16]}  Nxf7 {[%clk 0:00:03]} 42. Nxf7 {[%clk 0:00:17]}  Kxg4 {[%clk 0:00:04]} 43. Nd6 {[%clk 0:00:17]}  b6 {[%clk 0:00:04]} 44. Kc3 {[%clk 0:00:16]}  Kf4 {[%clk 0:00:03]} 45. Kd4 {[%clk 0:00:16]} 1-0


[Site "https://www.chess.com"]

[Event "Titled Tuesday Blitz March 14 Early 2023"]
[White "De Silva, L M S T"]
[Black "Vakhlamov, Igor L."]
[WhiteFideId "9953698"]
[BlackFideId "24126748"]
[WhiteElo "2403"]
[BlackElo "2400"]
[Result "0-1"]
[Round "09"]
[TimeControl "180+2"]
[Date "2023.03.14"]
[WhiteClock "0:00:44"]
[BlackClock "0:01:40"]

1. e4 {[%clk 0:03:00]}  c5 {[%clk 0:02:59]} 2. Nf3 {[%clk 0:03:00]}  e6 {[%clk 0:02:59]} 3. d4 {[%clk 0:03:00]}  cxd4 {[%clk 0:03:00]} 4. Nxd4 {[%clk 0:03:01]}  Nf6 {[%clk 0:03:01]} 5. Nc3 {[%clk 0:03:01]}  Nc6 {[%clk 0:03:01]} 6. Be2 {[%clk 0:03:02]}  d5 {[%clk 0:02:59]} 7. exd5 {[%clk 0:03:01]}  exd5 {[%clk 0:02:33]} 8. O-O {[%clk 0:03:00]}  Be7 {[%clk 0:02:33]} 9. Be3 {[%clk 0:02:53]}  O-O {[%clk 0:02:33]} 10. h3 {[%clk 0:02:52]}  Re8 {[%clk 0:02:32]} 11. Qd2 {[%clk 0:02:44]}  Bb4 {[%clk 0:02:31]} 12. Bg5 {[%clk 0:02:40]}  h6 {[%clk 0:02:27]} 13. Bh4 {[%clk 0:02:35]}  Ne4 {[%clk 0:01:53]} 14. Bxd8 {[%clk 0:00:57]}  Nxd2 {[%clk 0:01:51]} 15. Nxc6 {[%clk 0:00:52]}  bxc6 {[%clk 0:01:46]} 16. Rfd1 {[%clk 0:00:43]}  Bxc3 {[%clk 0:01:42]} 17. bxc3 {[%clk 0:00:44]}  Rxe2 {[%clk 0:01:40]} 0-1


[Site "https://www.chess.com"]

[Event "Titled Tuesday Blitz March 14 Early 2023"]
[White "Samant Aditya S"]
[Black "Yuan, Qingyu"]
[WhiteFideId "35080580"]
[BlackFideId "8609772"]
[WhiteElo "2362"]
[BlackElo "2359"]
[Result "1-0"]
[Round "09"]
[TimeControl "180+2"]
[Date "2023.03.14"]
[WhiteClock "0:00:05"]
[BlackClock "0:00:05"]

1. e4 {[%clk 0:03:00]}  e5 {[%clk 0:03:00]} 2. Nf3 {[%clk 0:03:00]}  Nc6 {[%clk 0:03:00]} 3. d4 {[%clk 0:02:58]}  exd4 {[%clk 0:03:00]} 4. Bc4 {[%clk 0:02:59]}  Bc5 {[%clk 0:03:00]} 5. c3 {[%clk 0:02:58]}  Nf6 {[%clk 0:02:57]} 6. e5 {[%clk 0:02:59]}  d5 {[%clk 0:02:55]} 7. Be2 {[%clk 0:02:59]}  Ne4 {[%clk 0:02:45]} 8. cxd4 {[%clk 0:02:59]}  Bb6 {[%clk 0:02:30]} 9. Nc3 {[%clk 0:02:59]}  O-O {[%clk 0:02:29]} 10. O-O {[%clk 0:02:59]}  Bg4 {[%clk 0:02:13]} 11. Be3 {[%clk 0:02:58]}  f6 {[%clk 0:02:01]} 12. exf6 {[%clk 0:02:55]}  Nxf6 {[%clk 0:01:55]} 13. Na4 {[%clk 0:02:16]}  Ne4 {[%clk 0:01:46]} 14. a3 {[%clk 0:02:12]}  Ne7 {[%clk 0:01:27]} 15. h3 {[%clk 0:01:22]}  Bxf3 {[%clk 0:01:18]} 16. Bxf3 {[%clk 0:01:23]}  Nf5 {[%clk 0:01:13]} 17. Nxb6 {[%clk 0:01:23]}  axb6 {[%clk 0:01:10]} 18. Re1 {[%clk 0:01:04]}  Nfd6 {[%clk 0:01:10]} 19. b3 {[%clk 0:00:49]}  Qh4 {[%clk 0:01:06]} 20. a4 {[%clk 0:00:44]}  c6 {[%clk 0:01:01]} 21. Rf1 {[%clk 0:00:19]}  Rf6 {[%clk 0:00:53]} 22. Bxe4 {[%clk 0:00:16]}  Nxe4 {[%clk 0:00:52]} 23. Qg4 {[%clk 0:00:17]}  Qxg4 {[%clk 0:00:39]} 24. hxg4 {[%clk 0:00:18]}  Rff8 {[%clk 0:00:28]} 25. f3 {[%clk 0:00:18]}  Nd6 {[%clk 0:00:28]} 26. Kf2 {[%clk 0:00:18]}  Ra6 {[%clk 0:00:27]} 27. Rfe1 {[%clk 0:00:13]}  Re8 {[%clk 0:00:11]} 28. Bf4 {[%clk 0:00:13]}  Rd8 {[%clk 0:00:07]} 29. Bxd6 {[%clk 0:00:11]}  Rxd6 {[%clk 0:00:08]} 30. Re7 {[%clk 0:00:11]}  Ra7 {[%clk 0:00:04]} 31. Rae1 {[%clk 0:00:12]}  Rf6 {[%clk 0:00:04]} 32. Rc7 {[%clk 0:00:09]}  Ra8 {[%clk 0:00:02]} 33. Ree7 {[%clk 0:00:08]}  Rg6 {[%clk 0:00:02]} 34. Rxb7 {[%clk 0:00:08]}  c5 {[%clk 0:00:02]} 35. Rbd7 {[%clk 0:00:03]}  cxd4 {[%clk 0:00:02]} 36. Rxd5 {[%clk 0:00:04]}  Rc8 {[%clk 0:00:02]} 37. Rxd4 {[%clk 0:00:04]}  h6 {[%clk 0:00:03]} 38. Kg3 {[%clk 0:00:04]}  Rc3 {[%clk 0:00:03]} 39. Rb4 {[%clk 0:00:04]}  Rcc6 {[%clk 0:00:03]} 40. Rb5 {[%clk 0:00:04]}  Rgf6 {[%clk 0:00:03]} 41. Re4 {[%clk 0:00:05]}  Kh7 {[%clk 0:00:03]} 42. Reb4 {[%clk 0:00:05]}  Rcd6 {[%clk 0:00:03]} 43. Rf4 {[%clk 0:00:05]}  Rg6 {[%clk 0:00:04]} 44. Re4 {[%clk 0:00:05]}  Rc6 {[%clk 0:00:04]} 45. a5 {[%clk 0:00:06]}  bxa5 {[%clk 0:00:04]} 46. Rxa5 {[%clk 0:00:07]}  Rb6 {[%clk 0:00:05]} 47. Rc5 {[%clk 0:00:06]}  Rgd6 {[%clk 0:00:05]} 48. b4 {[%clk 0:00:06]}  Rb7 {[%clk 0:00:05]} 49. b5 {[%clk 0:00:06]}  Rdb6 {[%clk 0:00:05]} 50. Rb4 {[%clk 0:00:06]}  Rd6 {[%clk 0:00:06]} 51. Rc2 {[%clk 0:00:05]}  Rd5 {[%clk 0:00:06]} 52. b6 {[%clk 0:00:05]}  Rd6 {[%clk 0:00:06]} 53. Rcb2 {[%clk 0:00:05]}  Re6 {[%clk 0:00:07]} 54. Kf4 {[%clk 0:00:05]}  Kg6 {[%clk 0:00:07]} 55. Rb5 {[%clk 0:00:05]}  Rf6+ {[%clk 0:00:07]} 56. Ke4 {[%clk 0:00:05]}  Rd6 {[%clk 0:00:07]} 57. Ke5 {[%clk 0:00:05]}  Rd3 {[%clk 0:00:05]} 58. Rd5 {[%clk 0:00:05]}  Rc3 {[%clk 0:00:03]} 59. Kd6 {[%clk 0:00:06]}  Kf7 {[%clk 0:00:03]} 60. Rc5 {[%clk 0:00:06]}  Rd3+ {[%clk 0:00:02]} 61. Kc6 {[%clk 0:00:06]}  Rdd7 {[%clk 0:00:03]} 62. Kb5 {[%clk 0:00:05]}  Rd8 {[%clk 0:00:03]} 63. Rc7+ {[%clk 0:00:05]}  Rd7 {[%clk 0:00:03]} 64. Rxd7+ {[%clk 0:00:05]}  Rxd7 {[%clk 0:00:04]} 65. Kc6 {[%clk 0:00:05]}  Re7 {[%clk 0:00:04]} 66. b7 {[%clk 0:00:05]}  Re6+ {[%clk 0:00:05]} 67. Kd5 {[%clk 0:00:05]}  Re5+ {[%clk 0:00:05]} 68. Kxe5 {[%clk 0:00:05]} 1-0


[Site "https://www.chess.com"]

[Event "Titled Tuesday Blitz March 14 Early 2023"]
[White "Galchenko, Matvey"]
[Black "Weetik, Vjacheslav"]
[WhiteFideId "24175480"]
[BlackFideId "4153472"]
[WhiteElo "2404"]
[BlackElo "2469"]
[Result "1-0"]
[Round "09"]
[TimeControl "180+2"]
[Date "2023.03.14"]
[WhiteClock "0:00:12"]
[BlackClock "0:00:01"]

1. f4 {[%clk 0:03:00]}  d5 {[%clk 0:02:59]} 2. Nf3 {[%clk 0:03:00]}  g6 {[%clk 0:02:59]} 3. g3 {[%clk 0:03:00]}  Bg7 {[%clk 0:02:59]} 4. Bg2 {[%clk 0:03:01]}  c5 {[%clk 0:02:50]} 5. O-O {[%clk 0:03:01]}  Nc6 {[%clk 0:02:49]} 6. d3 {[%clk 0:03:02]}  d4 {[%clk 0:02:49]} 7. c3 {[%clk 0:03:02]}  Nh6 {[%clk 0:02:39]} 8. e4 {[%clk 0:03:02]}  O-O {[%clk 0:02:23]} 9. h3 {[%clk 0:02:57]}  f6 {[%clk 0:02:02]} 10. g4 {[%clk 0:02:32]}  e5 {[%clk 0:01:47]} 11. f5 {[%clk 0:02:14]}  g5 {[%clk 0:01:43]} 12. cxd4 {[%clk 0:02:01]}  exd4 {[%clk 0:01:31]} 13. Na3 {[%clk 0:01:50]}  Nf7 {[%clk 0:01:29]} 14. h4 {[%clk 0:01:32]}  h6 {[%clk 0:01:23]} 15. Qb3 {[%clk 0:01:03]}  Qb6 {[%clk 0:00:36]} 16. Qc2 {[%clk 0:00:50]}  Nfe5 {[%clk 0:00:25]} 17. Nc4 {[%clk 0:00:50]}  Qc7 {[%clk 0:00:21]} 18. hxg5 {[%clk 0:00:47]}  hxg5 {[%clk 0:00:14]} 19. Qb3 {[%clk 0:00:41]}  Rf7 {[%clk 0:00:10]} 20. Nfxe5 {[%clk 0:00:18]}  Nxe5 {[%clk 0:00:10]} 21. Nxe5 {[%clk 0:00:17]}  Qxe5 {[%clk 0:00:11]} 22. Bd2 {[%clk 0:00:17]}  b6 {[%clk 0:00:07]} 23. Rf3 {[%clk 0:00:17]}  Ba6 {[%clk 0:00:07]} 24. Be1 {[%clk 0:00:17]}  Rc8 {[%clk 0:00:04]} 25. Bg3 {[%clk 0:00:16]}  Qe7 {[%clk 0:00:03]} 26. Rc1 {[%clk 0:00:17]}  Bb7 {[%clk 0:00:02]} 27. Rf2 {[%clk 0:00:16]}  b5 {[%clk 0:00:02]} 28. Qxb5 {[%clk 0:00:15]}  Ba8 {[%clk 0:00:03]} 29. Qc4 {[%clk 0:00:15]}  Bf8 {[%clk 0:00:01]} 30. Re1 {[%clk 0:00:13]}  Qb7 {[%clk 0:00:01]} 31. e5 {[%clk 0:00:13]}  Qb6 {[%clk 0:00:02]} 32. exf6 {[%clk 0:00:12]}  Bxg2 {[%clk 0:00:01]} 33. Kxg2 {[%clk 0:00:12]} 1-0


[Site "https://www.chess.com"]

[Event "Titled Tuesday Blitz March 14 Early 2023"]
[White "Jovic, Stanoje"]
[Black "EREBUNI91"]
[WhiteFideId "905020"]
[WhiteElo "2236"]
[BlackElo "2770"]
[Result "0-1"]
[Round "09"]
[TimeControl "180+2"]
[Date "2023.03.14"]
[WhiteClock "0:00:01"]
[BlackClock "0:00:18"]

1. c4 {[%clk 0:03:00]}  c5 {[%clk 0:03:00]} 2. g3 {[%clk 0:03:01]}  d6 {[%clk 0:03:00]} 3. Bg2 {[%clk 0:03:00]}  Nc6 {[%clk 0:03:01]} 4. Nc3 {[%clk 0:03:00]}  g6 {[%clk 0:03:00]} 5. Nf3 {[%clk 0:03:00]}  Bg7 {[%clk 0:03:01]} 6. O-O {[%clk 0:03:00]}  Nh6 {[%clk 0:03:00]} 7. d4 {[%clk 0:02:56]}  cxd4 {[%clk 0:02:59]} 8. Nxd4 {[%clk 0:02:56]}  Nxd4 {[%clk 0:02:59]} 9. Bxh6 {[%clk 0:02:55]}  Nxe2+ {[%clk 0:02:59]} 10. Qxe2 {[%clk 0:02:55]}  Bxh6 {[%clk 0:03:00]} 11. Rfe1 {[%clk 0:02:52]}  e6 {[%clk 0:02:52]} 12. Rad1 {[%clk 0:02:52]}  O-O {[%clk 0:02:51]} 13. Ne4 {[%clk 0:02:48]}  Bg7 {[%clk 0:02:42]} 14. Nxd6 {[%clk 0:02:46]}  Qc7 {[%clk 0:02:41]} 15. b4 {[%clk 0:02:40]}  Bc3 {[%clk 0:02:37]} 16. c5 {[%clk 0:02:30]}  Bxb4 {[%clk 0:02:25]} 17. Ne4 {[%clk 0:02:14]}  Bxe1 {[%clk 0:02:21]} 18. Qxe1 {[%clk 0:02:06]}  f6 {[%clk 0:02:22]} 19. Qc3 {[%clk 0:01:59]}  Kg7 {[%clk 0:02:20]} 20. Nd6 {[%clk 0:01:42]}  e5 {[%clk 0:02:17]} 21. f4 {[%clk 0:01:34]}  exf4 {[%clk 0:02:16]} 22. gxf4 {[%clk 0:01:34]}  Bg4 {[%clk 0:02:15]} 23. Rd3 {[%clk 0:01:20]}  Rad8 {[%clk 0:02:14]} 24. Qa3 {[%clk 0:01:06]}  b6 {[%clk 0:02:12]} 25. c6 {[%clk 0:01:00]}  Be6 {[%clk 0:02:03]} 26. h4 {[%clk 0:00:50]}  Bf7 {[%clk 0:02:01]} 27. h5 {[%clk 0:00:48]}  b5 {[%clk 0:01:51]} 28. h6+ {[%clk 0:00:47]}  Kxh6 {[%clk 0:01:41]} 29. f5 {[%clk 0:00:31]}  g5 {[%clk 0:01:38]} 30. Qc5 {[%clk 0:00:27]}  Kg7 {[%clk 0:01:28]} 31. Nxb5 {[%clk 0:00:25]}  Qa5 {[%clk 0:01:21]} 32. Rd7 {[%clk 0:00:20]}  Qe1+ {[%clk 0:01:20]} 33. Kh2 {[%clk 0:00:18]}  Rxd7 {[%clk 0:01:17]} 34. cxd7 {[%clk 0:00:18]}  Rd8 {[%clk 0:01:18]} 35. Bc6 {[%clk 0:00:13]}  Qd2+ {[%clk 0:01:16]} 36. Kg3 {[%clk 0:00:12]}  Qf4+ {[%clk 0:01:16]} 37. Kg2 {[%clk 0:00:10]}  Qg4+ {[%clk 0:00:55]} 38. Kh2 {[%clk 0:00:10]}  Qe2+ {[%clk 0:00:55]} 39. Kg1 {[%clk 0:00:10]}  Qxa2 {[%clk 0:00:47]} 40. Nd4 {[%clk 0:00:09]}  Qc4 {[%clk 0:00:40]} 41. Ne6+ {[%clk 0:00:08]}  Bxe6 {[%clk 0:00:39]} 42. Qe7+ {[%clk 0:00:08]}  Bf7 {[%clk 0:00:35]} 43. Qxd8 {[%clk 0:00:06]}  Qc5+ {[%clk 0:00:20]} 44. Kf1 {[%clk 0:00:03]}  Bc4+ {[%clk 0:00:19]} 45. Ke1 {[%clk 0:00:01]}  Qe3+ {[%clk 0:00:18]} 46. Kd1 {[%clk 0:00:01]}  Bb3# {[%clk 0:00:18]} 0-1


[Site "https://www.chess.com"]

[Event "Titled Tuesday Blitz March 14 Early 2023"]
[White "Pranav, V"]
[Black "Yurovskykh, Oleksandr"]
[WhiteFideId "25060783"]
[BlackFideId "14134020"]
[WhiteElo "2500"]
[BlackElo "2268"]
[Result "1-0"]
[Round "09"]
[TimeControl "180+2"]
[Date "2023.03.14"]
[WhiteClock "0:01:38"]
[BlackClock "0:01:08"]

1. e4 {[%clk 0:03:00]}  d5 {[%clk 0:02:54]} 2. exd5 {[%clk 0:03:01]}  Qxd5 {[%clk 0:02:55]} 3. Nc3 {[%clk 0:03:01]}  Qd8 {[%clk 0:02:56]} 4. d4 {[%clk 0:03:01]}  Nf6 {[%clk 0:02:56]} 5. Nf3 {[%clk 0:03:02]}  Bg4 {[%clk 0:02:56]} 6. Be3 {[%clk 0:03:01]}  e6 {[%clk 0:02:56]} 7. h3 {[%clk 0:03:01]}  Bh5 {[%clk 0:02:55]} 8. Be2 {[%clk 0:02:57]}  c6 {[%clk 0:02:54]} 9. Ne5 {[%clk 0:02:55]}  Bxe2 {[%clk 0:02:54]} 10. Qxe2 {[%clk 0:02:56]}  Nbd7 {[%clk 0:02:55]} 11. a3 {[%clk 0:02:55]}  Be7 {[%clk 0:02:55]} 12. O-O-O {[%clk 0:02:55]}  Qa5 {[%clk 0:02:50]} 13. Bd2 {[%clk 0:02:52]}  Qc7 {[%clk 0:02:48]} 14. g4 {[%clk 0:02:51]}  Nxe5 {[%clk 0:02:46]} 15. dxe5 {[%clk 0:02:51]}  Nd5 {[%clk 0:02:47]} 16. f4 {[%clk 0:02:51]}  O-O-O {[%clk 0:02:43]} 17. Ne4 {[%clk 0:02:51]}  Rd7 {[%clk 0:02:39]} 18. c4 {[%clk 0:02:46]}  Nb6 {[%clk 0:02:38]} 19. Ba5 {[%clk 0:02:46]}  c5 {[%clk 0:02:31]} 20. Rxd7 {[%clk 0:02:44]}  Qxd7 {[%clk 0:02:31]} 21. Bxb6 {[%clk 0:02:44]}  axb6 {[%clk 0:02:31]} 22. Rd1 {[%clk 0:02:44]}  Qc6 {[%clk 0:02:30]} 23. f5 {[%clk 0:02:29]}  Rd8 {[%clk 0:02:27]} 24. Rxd8+ {[%clk 0:02:14]}  Kxd8 {[%clk 0:02:27]} 25. f6 {[%clk 0:02:14]}  gxf6 {[%clk 0:02:24]} 26. exf6 {[%clk 0:02:14]}  Bf8 {[%clk 0:02:24]} 27. Kb1 {[%clk 0:02:09]}  Qd7 {[%clk 0:02:21]} 28. Ka2 {[%clk 0:02:07]}  Qd4 {[%clk 0:02:20]} 29. g5 {[%clk 0:02:06]}  Kd7 {[%clk 0:01:55]} 30. Nc3 {[%clk 0:02:00]}  Qf4 {[%clk 0:01:36]} 31. Qd3+ {[%clk 0:01:55]}  Kc8 {[%clk 0:01:24]} 32. Qxh7 {[%clk 0:01:42]}  Qxg5 {[%clk 0:01:08]} 33. Qxf7 {[%clk 0:01:38]} 1-0


[Site "https://www.chess.com"]

[Event "Titled Tuesday Blitz March 14 Early 2023"]
[White "Al-Tarboush, Ward"]
[Black "Salinas Herrera, Pablo"]
[WhiteFideId "7601450"]
[BlackFideId "3407128"]
[WhiteElo "2257"]
[BlackElo "2550"]
[Result "1-0"]
[Round "09"]
[TimeControl "180+2"]
[Date "2023.03.14"]
[WhiteClock "0:00:49"]
[BlackClock "0:00:05"]

1. e4 {[%clk 0:03:00]}  c5 {[%clk 0:02:59]} 2. Nf3 {[%clk 0:03:01]}  d6 {[%clk 0:03:00]} 3. d4 {[%clk 0:03:01]}  cxd4 {[%clk 0:03:00]} 4. Nxd4 {[%clk 0:03:02]}  Nf6 {[%clk 0:03:00]} 5. Nc3 {[%clk 0:03:02]}  a6 {[%clk 0:03:01]} 6. h3 {[%clk 0:03:02]}  e6 {[%clk 0:02:57]} 7. g4 {[%clk 0:03:01]}  h6 {[%clk 0:02:58]} 8. Bg2 {[%clk 0:03:01]}  g5 {[%clk 0:02:58]} 9. f4 {[%clk 0:02:59]}  gxf4 {[%clk 0:02:58]} 10. Nf3 {[%clk 0:02:48]}  e5 {[%clk 0:02:54]} 11. Bd2 {[%clk 0:02:42]}  Be6 {[%clk 0:02:54]} 12. Qe2 {[%clk 0:02:40]}  Nbd7 {[%clk 0:02:54]} 13. g5 {[%clk 0:02:36]}  hxg5 {[%clk 0:02:54]} 14. Nxg5 {[%clk 0:02:37]}  Nh5 {[%clk 0:02:49]} 15. Nxe6 {[%clk 0:02:35]}  Qh4+ {[%clk 0:02:37]} 16. Kd1 {[%clk 0:02:35]}  fxe6 {[%clk 0:02:37]} 17. Be1 {[%clk 0:02:27]}  Ng3 {[%clk 0:02:28]} 18. Qc4 {[%clk 0:02:18]}  Rh6 {[%clk 0:02:20]} 19. Rg1 {[%clk 0:02:14]}  Be7 {[%clk 0:01:53]} 20. b3 {[%clk 0:02:00]}  Kf7 {[%clk 0:01:27]} 21. Kc1 {[%clk 0:02:00]}  Rhh8 {[%clk 0:01:21]} 22. Kb2 {[%clk 0:01:58]}  Rac8 {[%clk 0:01:18]} 23. Qd3 {[%clk 0:01:57]}  Nf6 {[%clk 0:01:15]} 24. Bf3 {[%clk 0:01:54]}  Rhg8 {[%clk 0:01:11]} 25. Rd1 {[%clk 0:01:53]}  b5 {[%clk 0:00:54]} 26. Ne2 {[%clk 0:01:52]}  Nfh5 {[%clk 0:00:31]} 27. Bg4 {[%clk 0:01:49]}  Rg6 {[%clk 0:00:28]} 28. Nxg3 {[%clk 0:01:48]}  Nxg3 {[%clk 0:00:29]} 29. Bxg3 {[%clk 0:01:46]}  fxg3 {[%clk 0:00:29]} 30. Rdf1+ {[%clk 0:01:45]}  Ke8 {[%clk 0:00:29]} 31. Rxg3 {[%clk 0:01:44]}  Kd7 {[%clk 0:00:29]} 32. Rgf3 {[%clk 0:01:28]}  Rf6 {[%clk 0:00:19]} 33. Rxf6 {[%clk 0:01:27]}  Bxf6 {[%clk 0:00:20]} 34. Qd5 {[%clk 0:01:24]}  Re8 {[%clk 0:00:15]} 35. Qb7+ {[%clk 0:01:24]}  Kd8 {[%clk 0:00:15]} 36. Qa8+ {[%clk 0:01:23]}  Ke7 {[%clk 0:00:16]} 37. Qa7+ {[%clk 0:01:23]}  Kf8 {[%clk 0:00:16]} 38. Qd7 {[%clk 0:01:18]}  Re7 {[%clk 0:00:09]} 39. Qxd6 {[%clk 0:01:19]}  Kg7 {[%clk 0:00:09]} 40. Bxe6 {[%clk 0:01:16]}  Qxe4 {[%clk 0:00:09]} 41. Rg1+ {[%clk 0:01:16]}  Kh6 {[%clk 0:00:09]} 42. Rg4 {[%clk 0:01:12]}  Qf3 {[%clk 0:00:06]} 43. Qd2+ {[%clk 0:00:47]}  Kh7 {[%clk 0:00:06]} 44. Bg8+ {[%clk 0:00:48]}  Kh8 {[%clk 0:00:06]} 45. Qh6+ {[%clk 0:00:48]}  Rh7 {[%clk 0:00:05]} 46. Qxh7# {[%clk 0:00:49]} 1-0


[Site "https://www.chess.com"]